bitfinex/quotes_BTCUSD_20250829
["timestamp","ask_amount","ask_price","bid_price","bid_amount"]
[1756510358466,0.65243534,108700.0,108690.0,0.34528651]
[1756510361683,0.4684427,108700.0,108690.0,0.34528651]
[1756510362826,0.65243534,108700.0,108690.0,0.34528651]
[1756510363198,0.03766839,108700.0,108690.0,0.34528651]
[1756510363540,0.61476695,108700.0,108690.0,0.34528651]
[1756510364746,0.43077431,108700.0,108690.0,0.34528651]
[1756510365109,0.61476695,108700.0,108690.0,0.34528651]
[1756510365296,0.65154353,108700.0,108690.0,0.34528651]
[1756510366922,0.67919953,108700.0,108690.0,0.34528651]
[1756510368519,0.67919953,108700.0,108690.0,0.19172651]
[1756510368697,0.67919953,108700.0,108690.0,0.34524651]
[1756510371971,0.49520689,108700.0,108690.0,0.34524651]
[1756510372373,0.49322689,108700.0,108690.0,0.34524651]
[1756510373594,0.67721953,108700.0,108690.0,0.34524651]
[1756510374010,0.67919953,108700.0,108690.0,0.34524651]
[1756510375181,0.24842522,108700.0,108690.0,0.34524651]
[1756510375385,0.67919953,108700.0,108690.0,0.34524651]
[1756510378264,0.67919953,108700.0,108690.0,0.34520651]
[1756510380211,0.68207912,108700.0,108690.0,0.34520651]
[1756510382713,0.68207912,108700.0,108690.0,0.19172651]
[1756510382934,0.68207912,108700.0,108690.0,0.34520651]
[1756510383130,1.11087343,108700.0,108690.0,0.34520651]
[1756510383522,1.1108734,108700.0,108690.0,0.34520651]
[1756510384176,1.1108734,108700.0,108690.0,0.00771695]
[1756510384419,1.1108734,108700.0,108690.0,0.16119695]
[1756510384620,1.1108734,108700.0,108690.0,0.34520651]
[1756510385420,1.1108734,108700.0,108690.0,0.15595695]
[1756510386104,1.2643534,108700.0,108690.0,0.15595695]
[1756510386854,1.1108734,108700.0,108690.0,0.33996651]
[1756510387107,1.26147384,108700.0,108690.0,0.33996651]
[1756510387360,1.2643534,108700.0,108690.0,0.33996651]
[1756510388176,1.2643534,108700.0,108690.0,0.34314651]
[1756510388753,1.1108734,108700.0,108690.0,0.34314651]
[1756510388919,1.2643534,108700.0,108690.0,0.34314651]
[1756510389126,1.1108734,108700.0,108690.0,0.34513651]
[1756510389537,1.2643534,108700.0,108690.0,0.34513651]
[1756510389982,0.06731214,108700.0,108690.0,0.34513651]
[1756510390326,0.06443258,108700.0,108690.0,0.35942179]
[1756510390513,0.49322689,108700.0,108690.0,0.35942179]
[1756510391277,0.49610641,108700.0,108690.0,0.35942179]
[1756510391681,0.0673121,108700.0,108690.0,0.43343283]
[1756510391974,0.49610641,108700.0,108690.0,0.43343283]
[1756510394233,0.49322689,108700.0,108690.0,0.43343283]
[1756510395031,0.49322689,108700.0,108690.0,0.42822283]
[1756510395032,1.10799384,108700.0,108690.0,0.42822283]
[1756510395235,0.9240012,108700.0,108690.0,0.43339283]
[1756510395441,0.49520689,108700.0,108690.0,0.43339283]
[1756510395646,0.49322689,108700.0,108690.0,0.43339283]
[1756510395866,0.06443258,108700.0,108690.0,0.43339283]
[1756510396108,0.49322689,108700.0,108690.0,0.43339283]
[1756510396334,0.67919953,108700.0,108690.0,0.43339283]
[1756510396582,1.10799384,108700.0,108690.0,0.43339283]
[1756510396852,0.9220212,108700.0,108690.0,0.43339283]
[1756510398538,0.49322689,108700.0,108690.0,0.43339283]
[1756510401748,0.49322689,108700.0,108690.0,0.43239283]
[1756510401973,0.49322689,108700.0,108690.0,0.43439283]
[1756510402711,0.49322689,108700.0,108690.0,0.43339283]
[1756510403207,0.49322689,108700.0,108690.0,0.43539283]
[1756510404898,0.06443258,108700.0,108690.0,0.43539283]
[1756510405104,0.49322689,108700.0,108690.0,0.43539283]
[1756510405571,0.06443258,108700.0,108690.0,0.43539283]
[1756510405788,0.49322689,108700.0,108690.0,0.43539283]
[1756510407263,0.06443258,108700.0,108690.0,0.43539283]
[1756510407470,0.49322689,108700.0,108690.0,0.43539283]
[1756510408047,0.46557089,108700.0,108690.0,0.45633165]
[1756510409764,0.03677658,108700.0,108690.0,0.45633165]
[1756510409990,0.46557089,108700.0,108690.0,0.45633165]
[1756510410144,0.42879431,108700.0,108690.0,0.45633165]
[1756510412250,0.460133,108700.0,108690.0,0.45633165]
[1756510413554,0.460133,108700.0,108690.0,0.54462797]
[1756510413867,0.460133,108700.0,108690.0,0.45633165]
[1756510416769,0.26673389,108700.0,108690.0,0.45629165]
[1756510417378,0.45271653,108700.0,108690.0,0.45629165]
[1756510418666,0.45072653,108700.0,108690.0,0.45629165]
[1756510419473,0.45270653,108700.0,108690.0,0.45629165]
[1756510420036,0.03133869,108700.0,108690.0,0.950469]
[1756510420446,0.42879431,108710.0,108700.0,0.20493146]
[1756510420619,0.43167365,108710.0,108700.0,0.29322778]
[1756510420819,0.43365365,108710.0,108700.0,0.29645778]
[1756510421179,0.46565195,108710.0,108700.0,0.29645778]
[1756510421587,0.0339783,108710.0,108700.0,0.29850778]
[1756510421766,0.46277261,108710.0,108700.0,0.29950778]
[1756510424814,0.0339783,108710.0,108700.0,0.29950778]
[1756510425024,0.46277261,108710.0,108700.0,0.29950778]
[1756510431832,0.64674832,108710.0,108700.0,0.001]
[1756510432034,0.64920832,108710.0,108700.0,0.15436]
[1756510432329,0.67686332,108710.0,108700.0,0.15436]
[1756510433176,0.67974269,108710.0,108700.0,0.15436]
[1756510434082,0.67974269,108710.0,108700.0,0.001]
[1756510434611,0.67728269,108710.0,108700.0,0.001]
[1756510434793,0.67728269,108710.0,108700.0,0.18499264]
[1756510435617,0.24848838,108710.0,108700.0,0.18499264]
[1756510435936,0.67728269,108710.0,108700.0,0.18499264]
[1756510436538,0.67728271,108710.0,108700.0,0.001]
[1756510436677,0.67728271,108710.0,108700.0,0.15436]
[1756510436877,0.67728271,108710.0,108700.0,0.001]
[1756510437540,0.67974271,108710.0,108700.0,0.001]
[1756510438092,0.67728271,108710.0,108700.0,0.001]
[1756510438682,0.83064271,108710.0,108700.0,0.18499264]
[1756510439509,0.67728271,108710.0,108700.0,0.33831264]
[1756510439662,0.83060271,108710.0,108700.0,0.18812264]
[1756510439872,0.83060271,108710.0,108700.0,0.33831264]
[1756510440274,0.83060271,108710.0,108700.0,0.18499264]
[1756510440543,0.06451269,108710.0,108700.0,0.34348264]
[1756510440721,0.67728271,108710.0,108700.0,0.34348264]
[1756510440921,0.493307,108710.0,108700.0,0.34348264]
[1756510441099,0.493307,108710.0,108700.0,0.33831264]
[1756510441417,0.67728271,108710.0,108700.0,0.18499264]
[1756510441624,0.67728271,108710.0,108700.0,0.33831264]
[1756510442237,0.493307,108710.0,108700.0,0.33831264]
[1756510442654,0.67728271,108710.0,108700.0,0.34144264]
[1756510443027,0.67728271,108710.0,108700.0,0.33831264]
[1756510443640,0.6771784,108710.0,108700.0,0.33831264]
[1756510445634,1.0171784,108710.0,108700.0,0.33831264]
[1756510445882,1.01429901,108710.0,108700.0,0.34144264]
[1756510446095,1.0171784,108710.0,108700.0,0.34144264]
[1756510447030,0.40440838,108710.0,108700.0,0.34348264]
[1756510447240,0.83320269,108710.0,108700.0,0.34348264]
[1756510447649,1.0171784,108710.0,108700.0,0.34348264]
[1756510448046,0.58838409,108710.0,108700.0,0.34348264]
[1756510448351,1.01709355,108710.0,108700.0,0.34348264]
[1756510449696,0.40432353,108710.0,108700.0,0.34348264]
[1756510449987,0.0596533,108710.0,108700.0,0.43177896]
[1756510450220,0.0319983,108710.0,108700.0,0.5686671]
[1756510450645,1.13392521,108720.0,108710.0,0.18397571]
[1756510450862,1.13878449,108720.0,108710.0,0.18397571]
[1756510451068,0.40330574,108720.0,108710.0,0.18914571]
[1756510451274,0.98740005,108720.0,108710.0,0.18914571]
[1756510451901,1.17135884,108720.0,108710.0,0.18914571]
[1756510453159,1.17235884,108720.0,108710.0,0.18914571]
[1756510456549,1.60115315,108720.0,108710.0,0.18710571]
[1756510456743,1.60115315,108720.0,108710.0,0.18397571]
[1756510459002,1.60115315,108720.0,108710.0,0.18904571]
[1756510460956,1.26095315,108720.0,108710.0,0.18904571]
[1756510462351,1.26095315,108720.0,108710.0,0.00507]
[1756510465394,0.40336453,108720.0,108710.0,0.18904571]
[1756510465598,1.26095315,108720.0,108710.0,0.18397571]
[1756510469048,1.26095315,108720.0,108700.0,0.32387078]
[1756510469265,0.42879431,108710.0,108700.0,0.47715078]
[1756510469645,0.42879431,108710.0,108700.0,0.47923078]
[1756510471061,0.82629956,108720.0,108700.0,0.32595078]
[1756510471260,0.82917884,108720.0,108700.0,0.47923078]
[1756510471469,0.42879431,108710.0,108700.0,0.47923078]
[1756510471968,0.61277002,108710.0,108700.0,0.48023078]
[1756510474341,0.61277002,108710.0,108700.0,0.32695078]
[1756510474582,0.61277002,108710.0,108700.0,0.48023078]
[1756510474759,0.61277002,108710.0,108700.0,0.32695078]
[1756510474965,0.61277002,108710.0,108700.0,0.48023078]
[1756510479286,0.6156493,108710.0,108700.0,0.48023078]
[1756510481093,0.42879431,108710.0,108700.0,0.48023078]
[1756510481256,0.43167359,108710.0,108700.0,0.48023078]
[1756510486832,0.6156493,108710.0,108700.0,0.32695078]
[1756510487036,0.6176293,108710.0,108700.0,0.48023078]
[1756510488092,0.61475002,108710.0,108700.0,0.48023078]
[1756510488299,0.6176293,108710.0,108700.0,0.48023078]
[1756510489666,0.6156493,108710.0,108700.0,0.48023078]
[1756510492360,0.6156493,108710.0,108700.0,0.48019078]
[1756510494472,0.6156493,108710.0,108700.0,0.32695078]
[1756510494719,0.6156493,108710.0,108700.0,0.48019078]
[1756510496106,0.18685499,108710.0,108700.0,0.48019078]
[1756510496306,0.6156493,108710.0,108700.0,0.48019078]
[1756510500246,0.18685499,108710.0,108700.0,0.48019078]
[1756510502292,0.6156493,108710.0,108700.0,0.48019078]
[1756510502985,0.6176293,108710.0,108700.0,0.48019078]
[1756510503576,0.6156493,108710.0,108700.0,0.32695078]
[1756510503887,0.6176293,108710.0,108700.0,0.48019078]
[1756510504616,0.61475002,108710.0,108700.0,0.48019078]
[1756510504820,0.6176293,108710.0,108700.0,0.48019078]
[1756510505463,0.6156493,108710.0,108700.0,0.48019078]
[1756510507415,0.00287928,108710.0,108700.0,0.90898509]
[1756510507654,0.03257446,108720.0,108710.0,0.18397571]
[1756510507882,0.03545359,108720.0,108710.0,0.72494516]
[1756510508085,0.00287913,108720.0,108710.0,0.72698516]
[1756510508333,0.0002,108730.0,108720.0,0.18395879]
[1756510508558,0.0002,108730.0,108720.0,0.7689331]
[1756510508778,0.02749452,108730.0,108720.0,0.81172136]
[1756510509007,0.00307896,108730.0,108720.0,0.38292705]
[1756510509246,0.0002,108730.0,108720.0,0.41057505]
[1756510509477,0.42899431,108730.0,108720.0,0.51981019]
[1756510509887,0.45602156,108730.0,108720.0,0.51981019]
[1756510510317,0.45602156,108730.0,108720.0,0.52181019]
[1756510510519,0.63996343,108730.0,108720.0,0.36857019]
[1756510510730,0.45602156,108730.0,108720.0,0.52281019]
[1756510511589,0.02722725,108730.0,108720.0,0.52281019]
[1756510512020,0.21116912,108730.0,108720.0,0.36957019]
[1756510512226,0.02722725,108730.0,108720.0,0.52277019]
[1756510512959,0.45602156,108730.0,108720.0,0.52277019]
[1756510515100,0.02722725,108730.0,108720.0,0.52277019]
[1756510515318,0.45602156,108730.0,108720.0,0.52277019]
[1756510515518,0.02722725,108730.0,108720.0,0.52277019]
[1756510515719,0.02722725,108730.0,108720.0,0.9515645]
[1756510516549,0.02722725,108730.0,108720.0,0.52277019]
[1756510516761,0.02722725,108730.0,108720.0,0.9515645]
[1756510516977,0.02722725,108730.0,108720.0,0.52277019]
[1756510519614,0.45602156,108730.0,108720.0,0.52277019]
[1756510519826,0.02722725,108730.0,108720.0,0.52277019]
[1756510520480,0.02722725,108730.0,108720.0,0.36957019]
[1756510520693,0.02722725,108730.0,108720.0,0.52277019]
[1756510521069,0.45602156,108730.0,108720.0,0.52277019]
[1756510523972,0.45602156,108730.0,108720.0,0.36957019]
[1756510524192,0.45602156,108730.0,108720.0,0.52277019]
[1756510524780,0.02722725,108730.0,108720.0,0.52277019]
[1756510524984,0.45602156,108730.0,108720.0,0.52277019]
[1756510525404,0.02722725,108730.0,108720.0,0.9515645]
[1756510529591,0.02722725,108730.0,108720.0,0.52277019]
[1756510531749,0.02722725,108730.0,108720.0,0.36957019]
[1756510531956,0.02722725,108730.0,108720.0,0.52273019]
[1756510532158,0.45602156,108730.0,108720.0,0.52273019]
[1756510533208,0.64192343,108730.0,108720.0,0.36459019]
[1756510533418,0.45798156,108730.0,108720.0,0.51775019]
[1756510533628,0.02918725,108730.0,108720.0,0.52284019]
[1756510533844,0.02722725,108730.0,108720.0,0.52284019]
[1756510538132,0.02222725,108730.0,108720.0,0.52284019]
[1756510538344,0.42899431,108740.0,108730.0,0.18394187]
[1756510538575,0.43383291,108740.0,108730.0,0.18394187]
[1756510538763,0.45743152,108740.0,108730.0,0.18394187]
[1756510539647,0.45743152,108740.0,108730.0,0.18541882]
[1756510540075,0.45743152,108740.0,108730.0,0.19050882]
[1756510540952,0.64135647,108740.0,108730.0,0.19050882]
[1756510541175,0.64135647,108740.0,108730.0,0.18846882]
[1756510541617,0.64135647,108740.0,108730.0,0.33857882]
[1756510542058,1.07015078,108740.0,108730.0,0.33857882]
[1756510545457,0.64135647,108740.0,108730.0,0.33857882]
[1756510546354,0.21256216,108740.0,108730.0,0.33857882]
[1756510546551,0.64135647,108740.0,108730.0,0.33857882]
[1756510548359,0.64135647,108740.0,108730.0,0.18541882]
[1756510548873,0.64135647,108740.0,108730.0,0.33857882]
[1756510549486,0.64135647,108740.0,108730.0,0.34366882]
[1756510550578,0.63847787,108740.0,108730.0,0.34366882]
[1756510550780,0.64135647,108740.0,108730.0,0.34366882]
[1756510551188,0.21256216,108740.0,108730.0,0.34366882]
[1756510551395,0.64135647,108740.0,108730.0,0.34366882]
[1756510551830,1.07015078,108740.0,108730.0,0.34366882]
[1756510552967,1.07015078,108740.0,108730.0,0.19050882]
[1756510553179,1.07015078,108740.0,108730.0,0.33857882]
[1756510553835,1.07015078,108740.0,108730.0,0.34164882]
[1756510555570,1.07015076,108740.0,108730.0,0.34164882]
[1756510556364,1.07015076,108740.0,108730.0,0.33857882]
[1756510556580,0.21256214,108740.0,108730.0,0.34366882]
[1756510556786,1.07015076,108740.0,108730.0,0.34366882]
[1756510558340,1.07015076,108740.0,108730.0,0.33857882]
[1756510558566,1.07015076,108740.0,108730.0,0.34164882]
[1756510559645,0.64135645,108740.0,108730.0,0.34164882]
[1756510560225,0.64135645,108740.0,108730.0,0.34366882]
[1756510560628,0.64135645,108740.0,108730.0,0.00147695]
[1756510560839,0.63847787,108740.0,108730.0,0.15459695]
[1756510561037,1.07015079,108740.0,108730.0,0.15459695]
[1756510561613,1.07015079,108740.0,108730.0,0.15766695]
[1756510564227,1.07015079,108740.0,108730.0,0.00147695]
[1756510564436,1.07243079,108740.0,108730.0,0.00147695]
[1756510564642,1.10007979,108740.0,108730.0,0.00147695]
[1756510564950,1.25319979,108740.0,108730.0,0.00147695]
[1756510565237,1.0279189,108740.0,108730.0,0.00147695]
[1756510565457,1.21007385,108740.0,108730.0,0.00147695]
[1756510565705,0.36808256,108740.0,108730.0,0.00147695]
[1756510565952,1.22567118,108740.0,108730.0,0.00147695]
[1756510566435,1.24962654,108740.0,108730.0,2.9e-07]
[1756510566636,1.25262654,108740.0,108730.0,2.9e-07]
[1756510566962,1.25062654,108740.0,108730.0,2.9e-07]
[1756510567166,1.25262654,108740.0,108730.0,2.9e-07]
[1756510568079,1.22632264,108740.0,108730.0,2.9e-07]
[1756510568502,1.56664264,108740.0,108730.0,2.9e-07]
[1756510568723,7.19808618,108740.0,108730.0,2.9e-07]
[1756510568943,7.62688049,108740.0,108730.0,2.9e-07]
[1756510569372,8.48346911,108740.0,108730.0,2.9e-07]
[1756510569790,8.48446911,108740.0,108730.0,2.9e-07]
[1756510570003,8.48246911,108740.0,108730.0,2.9e-07]
[1756510570221,8.70430256,108740.0,108730.0,2.9e-07]
[1756510570432,8.70630256,108740.0,108730.0,2.9e-07]
[1756510570645,8.70350048,108740.0,108730.0,2.9e-07]
[1756510570859,0.52399264,108700.0,108690.0,0.0721143]
[1756510571125,6.91590077,108700.0,108690.0,0.07225763]
[1756510571332,6.89867189,108700.0,108690.0,0.07225763]
[1756510571520,7.05274189,108700.0,108690.0,0.07225763]
[1756510571708,7.08040489,108700.0,108690.0,0.07225763]
[1756510572177,6.92716489,108700.0,108690.0,0.00014333]
[1756510572408,7.08040489,108700.0,108690.0,0.00014333]
[1756510572618,7.08240489,108700.0,108690.0,0.00014333]
[1756510573511,6.65369724,108700.0,108690.0,0.00014333]
[1756510575197,6.50045724,108700.0,108690.0,0.00014333]
[1756510575407,6.65397724,108700.0,108690.0,0.00014333]
[1756510576683,6.67109822,108700.0,108690.0,0.00014333]
[1756510578333,6.51761822,108700.0,108690.0,0.00014333]
[1756510578538,6.96711822,108700.0,108690.0,0.00014333]
[1756510578739,7.12059822,108700.0,108690.0,0.00014333]
[1756510579377,6.96679822,108700.0,108690.0,0.00014333]
[1756510579602,6.10861294,108700.0,108690.0,0.00521333]
[1756510579826,6.69093058,108700.0,108690.0,0.00521333]
[1756510580245,6.69381073,108700.0,108690.0,0.00521333]
[1756510581147,1.58551328,108700.0,108690.0,0.00521333]
[1756510581348,1.60553248,108700.0,108690.0,0.00521333]
[1756510581556,1.58839334,108700.0,108690.0,0.00521333]
[1756510582157,1.6055319,108700.0,108690.0,0.00521333]
[1756510583384,1.6060419,108700.0,108690.0,0.00521333]
[1756510583670,6.69433822,108700.0,108690.0,0.00014333]
[1756510584629,6.54081822,108700.0,108690.0,0.00014333]
[1756510584835,6.69429822,108700.0,108690.0,0.00014333]
[1756510585046,6.69429822,108700.0,108690.0,0.00322333]
[1756510585256,1.4520119,108700.0,108690.0,0.00521333]
[1756510585465,1.6054519,108700.0,108690.0,0.00521333]
[1756510586758,1.17661426,108700.0,108690.0,0.00521333]
[1756510586975,1.6054519,108700.0,108690.0,0.00521333]
[1756510589716,1.17661426,108700.0,108690.0,0.00521333]
[1756510589914,1.17661426,108700.0,108690.0,0.00014333]
[1756510589915,1.6059619,108700.0,108690.0,0.00014333]
[1756510590594,6.6059619,108700.0,108690.0,0.00014333]
[1756510590806,6.6059619,108700.0,108690.0,0.00322333]
[1756510591952,6.60598706,108700.0,108690.0,0.00322333]
[1756510594700,6.45254706,108700.0,108690.0,0.00521333]
[1756510594907,1.17655942,108700.0,108690.0,0.00521333]
[1756510595379,1.60539706,108700.0,108690.0,0.00521333]
[1756510596323,1.60339706,108700.0,108690.0,0.00621333]
[1756510596535,1.60339706,108700.0,108690.0,0.00721333]
[1756510596794,1.45003706,108700.0,108690.0,0.00721333]
[1756510597007,1.60339706,108700.0,108690.0,0.00721333]
[1756510597237,1.17455942,108700.0,108690.0,0.00721333]
[1756510597477,1.60347706,108700.0,108690.0,0.19122289]
[1756510597719,1.26347706,108700.0,108690.0,0.19122289]
[1756510599117,0.83463942,108700.0,108690.0,0.19122289]
[1756510599337,0.81397706,108700.0,108690.0,0.00721333]
[1756510600194,0.38513942,108700.0,108690.0,0.00721333]
[1756510600416,0.02004378,108700.0,108690.0,0.73159578]
[1756510600642,0.02004378,108700.0,108690.0,0.30045803]
[1756510600860,0.02004378,108700.0,108690.0,0.32811403]
[1756510601304,0.02004378,108700.0,108690.0,0.75595167]
[1756510601965,0.00288,108700.0,108690.0,0.75595167]
[1756510602210,0.00288,108700.0,108690.0,0.32711403]
[1756510602418,0.15356,108720.0,108710.0,0.18396541]
[1756510602620,0.17367776,108720.0,108710.0,0.18396541]
[1756510602830,0.17367776,108720.0,108710.0,0.18903541]
[1756510603315,0.17367776,108720.0,108710.0,0.21668641]
[1756510604808,0.35763655,108720.0,108710.0,0.21768641]
[1756510605943,0.35760822,108720.0,108710.0,0.21768641]
[1756510606144,0.78644586,108720.0,108710.0,0.033721]
[1756510606312,0.34039792,108720.0,108710.0,0.033721]
[1756510606661,0.76919556,108720.0,108710.0,0.033721]
[1756510607126,0.76919556,108720.0,108710.0,0.00607]
[1756510608118,0.76919556,108720.0,108710.0,0.19004571]
[1756510609467,0.34035792,108720.0,108710.0,0.19004571]
[1756510609648,0.15639913,108720.0,108710.0,0.19004571]
[1756510610250,0.34035792,108720.0,108710.0,0.19004571]
[1756510613146,0.3403579,108720.0,108710.0,0.19004571]
[1756510616170,0.15639911,108720.0,108710.0,0.19004571]
[1756510618284,0.3403579,108720.0,108710.0,0.19004571]
[1756510618499,0.15639911,108720.0,108710.0,0.19004571]
[1756510618883,0.00287911,108720.0,108710.0,0.29928085]
[1756510619087,0.33746316,108730.0,108720.0,0.18395879]
[1756510619259,0.33746316,108730.0,108720.0,0.18914879]
[1756510619260,0.3403421,108730.0,108720.0,0.18914879]
[1756510619461,0.15639894,108730.0,108720.0,0.18914879]
[1756510620510,0.15635894,108730.0,108720.0,0.18914879]
[1756510620967,0.34030081,108730.0,108720.0,0.18914879]
[1756510621174,0.76913845,108730.0,108720.0,0.18914879]
[1756510621578,0.76913845,108730.0,108720.0,0.19114879]
[1756510622375,0.34030081,108730.0,108720.0,0.19114879]
[1756510622587,0.34081075,108730.0,108720.0,0.18914879]
[1756510623108,0.76964839,108730.0,108720.0,0.19114879]
[1756510624019,0.76964839,108730.0,108720.0,0.19314879]
[1756510624756,0.34081075,108730.0,108720.0,0.19314879]
[1756510626875,0.34081075,108730.0,108720.0,0.00919]
[1756510627087,0.34081075,108730.0,108720.0,0.00719]
[1756510628072,0.34081075,108730.0,108720.0,0.19314879]
[1756510628855,0.34081075,108730.0,108720.0,0.19114879]
[1756510629300,0.34081075,108730.0,108720.0,0.19314879]
[1756510633183,0.33793187,108730.0,108720.0,0.19114879]
[1756510633305,0.34081075,108730.0,108720.0,0.19114879]
[1756510634134,0.34081075,108730.0,108720.0,0.19314879]
[1756510642158,0.34081075,108730.0,108720.0,0.00919]
[1756510642852,0.76996839,108730.0,108720.0,0.004]
[1756510643043,0.78722645,108730.0,108720.0,0.004]
[1756510643734,0.78722645,108730.0,108720.0,0.002]
[1756510643934,0.78722809,108730.0,108720.0,0.002]
[1756510644135,0.18397226,108720.0,108700.0,0.3771229]
[1756510644347,0.61568894,108720.0,108700.0,0.46541922]
[1756510644488,0.6128099,108720.0,108700.0,0.46541922]
[1756510644712,0.18397571,108710.0,108700.0,0.48635804]
[1756510644920,0.18397571,108710.0,108700.0,0.48851804]
[1756510645680,0.18397571,108710.0,108700.0,0.49051804]
[1756510645883,0.18397571,108710.0,108700.0,0.49251804]
[1756510646181,0.18397571,108710.0,108700.0,0.48851804]
[1756510646546,0.18397571,108710.0,108700.0,0.49151804]
[1756510647362,0.18397571,108710.0,108700.0,0.49451804]
[1756510650048,0.33715879,108720.0,108710.0,0.18397571]
[1756510650438,0.33715879,108720.0,108710.0,0.18919571]
[1756510651005,0.33719879,108720.0,108710.0,0.18919571]
[1756510651215,0.33719879,108720.0,108710.0,0.00522]
[1756510651418,0.33770879,108720.0,108710.0,0.00722]
[1756510652224,0.33770879,108720.0,108710.0,0.00922]
[1756510652419,0.76654643,108720.0,108710.0,0.00706]
[1756510653272,0.76654643,108720.0,108710.0,0.004]
[1756510653508,1.19858331,108720.0,108710.0,0.004]
[1756510653912,5.76974567,108720.0,108710.0,0.004]
[1756510654120,5.76942567,108720.0,108710.0,0.004]
[1756510654322,5.76942567,108720.0,108710.0,0.002]
[1756510654533,5.76942588,108720.0,108710.0,0.002]
[1756510654978,0.18399131,108710.0,108690.0,0.42045231]
[1756510655199,5.76606895,108710.0,108700.0,0.00522]
[1756510655414,0.76657895,108710.0,108700.0,0.00522]
[1756510657492,0.61333895,108710.0,108700.0,0.00522]
[1756510657692,0.76657895,108710.0,108700.0,0.00722]
[1756510658095,0.76657895,108710.0,108700.0,0.00922]
[1756510658806,0.61332335,108710.0,108700.0,0.19321264]
[1756510658949,0.76656335,108710.0,108700.0,0.19321264]
[1756510659161,0.33721571,108710.0,108700.0,0.19321264]
[1756510660498,0.33721571,108710.0,108700.0,0.00922]
[1756510662894,0.33772571,108710.0,108700.0,0.00922]
[1756510664042,0.33721571,108710.0,108700.0,0.00922]
[1756510664244,0.76605335,108710.0,108700.0,0.00922]
[1756510667257,0.76605335,108710.0,108700.0,0.036875]
[1756510667460,0.76605335,108710.0,108700.0,0.22086764]
[1756510668428,0.76605335,108710.0,108700.0,0.036875]
[1756510669645,0.33721571,108710.0,108700.0,0.036875]
[1756510670056,0.76605335,108710.0,108700.0,0.036875]
[1756510670805,0.33772571,108710.0,108700.0,0.036875]
[1756510671027,0.76656335,108710.0,108700.0,0.036875]
[1756510671471,0.73998125,108710.0,108700.0,0.036875]
[1756510672686,0.31114361,108710.0,108700.0,0.036875]
[1756510672886,0.73998125,108710.0,108700.0,0.22086764]
[1756510674408,0.31114361,108710.0,108700.0,0.22086764]
[1756510674589,0.73998125,108710.0,108700.0,0.036875]
[1756510675374,0.73962636,108710.0,108700.0,0.036875]
[1756510675570,0.73962636,108710.0,108700.0,0.22086764]
[1756510676268,0.49460143,108710.0,108700.0,0.22086764]
[1756510676478,0.67857714,108710.0,108700.0,0.22086764]
[1756510678077,0.67857714,108710.0,108700.0,0.036875]
[1756510678266,0.67857714,108710.0,108700.0,0.034715]
[1756510678405,0.67857714,108710.0,108700.0,0.036695]
[1756510679300,0.67857714,108710.0,108700.0,0.034715]
[1756510679551,0.67857714,108710.0,108700.0,0.036695]
[1756510681112,0.25009439,108710.0,108700.0,0.036695]
[1756510681319,0.67857714,108710.0,108700.0,0.036695]
[1756510682744,0.67857714,108710.0,108700.0,0.034715]
[1756510683276,0.68145659,108710.0,108700.0,0.034715]
[1756510683702,0.68145659,108710.0,108700.0,0.21870764]
[1756510683883,0.68145659,108710.0,108700.0,0.22068764]
[1756510684508,0.68145659,108710.0,108700.0,0.036695]
[1756510685195,0.61533791,108710.0,108700.0,0.22068764]
[1756510685396,0.76857791,108710.0,108700.0,0.22068764]
[1756510685595,0.76857793,108710.0,108700.0,0.22068764]
[1756510686965,0.76857793,108710.0,108700.0,0.036695]
[1756510687870,0.34009518,108710.0,108700.0,0.036695]
[1756510688020,0.76857793,108710.0,108700.0,0.036695]
[1756510689748,0.76857793,108710.0,108700.0,0.22068764]
[1756510695074,0.76857793,108710.0,108700.0,0.37388764]
[1756510696170,0.76569846,108710.0,108700.0,0.37388764]
[1756510696385,0.76857793,108710.0,108700.0,0.37388764]
[1756510696842,0.76857793,108710.0,108700.0,0.22068764]
[1756510697050,0.76857793,108710.0,108700.0,0.37388764]
[1756510697471,0.61533793,108710.0,108700.0,0.37388764]
[1756510697853,0.18685518,108710.0,108700.0,0.37388764]
[1756510698087,0.61533793,108710.0,108700.0,0.37388764]
[1756510699098,0.18685518,108710.0,108700.0,0.37388764]
[1756510699304,0.61533793,108710.0,108700.0,0.37388764]
[1756510699434,0.76853793,108710.0,108700.0,0.37388764]
[1756510701720,0.61533793,108710.0,108700.0,0.37388764]
[1756510701917,0.76853793,108710.0,108700.0,0.37388764]
[1756510706879,0.76853788,108710.0,108700.0,0.37388764]
[1756510708606,0.76853788,108710.0,108700.0,0.22068764]
[1756510708846,0.76853788,108710.0,108700.0,0.37388764]
[1756510710321,0.76853788,108710.0,108700.0,0.189895]
[1756510710759,0.76853788,108710.0,108700.0,0.37388764]
[1756510713296,0.76565846,108710.0,108700.0,0.37388764]
[1756510714310,0.33717571,108710.0,108700.0,0.37388764]
[1756510714511,0.76565846,108710.0,108700.0,0.37388764]
[1756510715873,0.18397571,108710.0,108700.0,0.34623264]
[1756510716049,0.76565846,108710.0,108700.0,0.34623264]
[1756510716869,0.76565846,108710.0,108700.0,0.34223264]
[1756510717069,0.76565846,108710.0,108700.0,0.34323264]
[1756510717272,0.76565846,108710.0,108700.0,0.34523264]
[1756510717478,0.76565846,108710.0,108700.0,0.34423264]
[1756510717878,0.76565846,108710.0,108700.0,0.34623264]
[1756510720722,0.18397571,108710.0,108700.0,0.34623264]
[1756510720973,0.76565846,108710.0,108700.0,0.34623264]
[1756510722781,0.61245846,108710.0,108700.0,0.34623264]
[1756510724749,0.76565846,108710.0,108700.0,0.34623264]
[1756510725795,0.33717571,108710.0,108700.0,0.34623264]
[1756510726011,0.61245846,108710.0,108700.0,0.34623264]
[1756510726215,0.76565846,108710.0,108700.0,0.34623264]
[1756510726429,0.76853788,108710.0,108700.0,0.34623264]
[1756510727483,0.76853788,108710.0,108700.0,0.37388764]
[1756510729214,0.76853788,108710.0,108700.0,0.22068764]
[1756510729413,0.76853788,108710.0,108700.0,0.37388764]
[1756510736193,0.34005513,108710.0,108700.0,0.37388764]
[1756510736427,0.61533788,108710.0,108700.0,0.37388764]
[1756510736645,0.34001513,108710.0,108700.0,0.37388764]
[1756510736865,0.00287942,108710.0,108700.0,0.48312278]
[1756510737076,0.42848275,108710.0,108700.0,0.48312278]
[1756510737272,0.42848275,108710.0,108700.0,0.32992278]
[1756510737475,0.42848275,108710.0,108700.0,0.48308278]
[1756510738464,0.61245846,108710.0,108700.0,0.32992278]
[1756510738689,0.61245846,108710.0,108700.0,0.29909014]
[1756510739499,0.61245846,108710.0,108700.0,0.48308278]
[1756510739898,0.61245846,108710.0,108700.0,0.29909014]
[1756510740312,0.61245846,108710.0,108700.0,0.48308278]
[1756510740711,0.61245846,108710.0,108700.0,0.14593014]
[1756510740918,0.61245846,108710.0,108700.0,0.031655]
[1756510741127,0.61245846,108710.0,108700.0,0.37190764]
[1756510741337,0.61245846,108710.0,108700.0,0.37392764]
[1756510741794,0.33713571,108710.0,108700.0,0.37392764]
[1756510741988,0.61245846,108710.0,108700.0,0.37392764]